bitfinex/quotes_BTCUSD_20250226
["timestamp","ask_amount","ask_price","bid_price","bid_amount"]
[1740530060613,0.16935,88574.0,88568.0,0.00711919]
[1740530060855,0.0284404,88585.0,88557.0,0.04924202]
[1740530061058,0.169335,88582.0,88565.0,0.169366]
[1740530061257,0.169336,88582.0,88560.0,0.225835]
[1740530061419,0.169336,88582.0,88559.0,0.0071352]
[1740530061649,0.169336,88582.0,88566.0,0.169365]
[1740530061856,0.002,88583.0,88560.0,0.00713342]
[1740530062107,0.002,88583.0,88568.0,0.169359]
[1740530062484,0.225767,88587.0,88569.0,0.00711741]
[1740530062488,0.16610566,88587.0,88569.0,0.00711741]
[1740530062691,0.0072,88589.0,88569.0,0.00711741]
[1740530062936,0.16933,88585.0,88569.0,0.00711741]
[1740530063157,0.169329,88585.0,88569.0,0.00711741]
[1740530063282,0.169323,88588.0,88570.0,0.169357]
[1740530063478,0.002,88583.0,88558.0,0.3251]
[1740530063832,0.02958772,88589.0,88574.0,0.169348]
[1740530064062,0.002,88585.0,88573.0,0.169351]
[1740530064236,0.002,88585.0,88575.0,0.169347]
[1740530064415,0.002,88585.0,88577.0,0.169342]
[1740530064691,0.002,88585.0,88572.0,0.0767]
[1740530064692,0.002,88585.0,88578.0,0.00158043]
[1740530064821,0.002,88585.0,88578.0,0.23446983]
[1740530065023,0.002,88585.0,88584.0,0.16933]
[1740530065228,0.002,88585.0,88584.0,0.17091025]
[1740530065430,0.002,88585.0,88584.0,0.17795978]
[1740530066029,0.002,88585.0,88584.0,0.00704953]
[1740530066209,0.002,88585.0,88584.0,4.202e-05]
[1740530066443,0.02952954,88589.0,88584.0,0.00709155]
[1740530066667,0.169315,88592.0,88584.0,0.00404202]
[1740530066847,0.169312,88594.0,88585.0,0.00704775]
[1740530067165,0.169313,88593.0,88585.0,0.00704775]
[1740530067364,0.169313,88594.0,88584.0,4.202e-05]
[1740530067663,0.169313,88594.0,88584.0,0.00304202]
[1740530067869,0.169309,88595.0,88584.0,4.202e-05]
[1740530068032,0.225715,88607.0,88584.0,4.202e-05]
[1740530068230,0.225718,88606.0,88585.0,0.001]
[1740530068414,0.169307,88596.0,88584.0,4.202e-05]
[1740530068621,0.1977254,88596.0,88586.0,0.00703869]
[1740530068834,0.0284184,88596.0,88584.0,0.00204202]
[1740530069036,0.225731,88601.0,88587.0,0.00703692]
[1740530069235,0.225725,88604.0,88584.0,0.00204202]
[1740530069236,0.169302,88600.0,88584.0,0.00204202]
[1740530069671,0.0072,88615.0,88586.0,0.0807]
[1740530069981,0.225705,88611.0,88587.0,0.0086152]
[1740530070196,0.0072,88615.0,88588.0,0.00903572]
[1740530070197,0.1693,88600.0,88588.0,0.00903572]
[1740530070569,0.225708,88610.0,88588.0,0.00903572]
[1740530070748,0.0004241,88592.0,88588.0,0.00903572]
[1740530070959,0.0004241,88592.0,88589.0,0.00703149]
[1740530071431,0.0004241,88592.0,88589.0,0.00861165]
[1740530071743,0.0004241,88592.0,88591.0,0.169317]
[1740530071932,0.0004241,88592.0,88589.0,0.00703149]
[1740530072090,0.0004241,88592.0,88591.0,0.00702793]
[1740530072298,0.0004241,88592.0,88590.0,0.00702971]
[1740530072495,0.0004241,88592.0,88591.0,0.00702793]
[1740530072897,0.0004241,88592.0,88586.0,0.25160516]
[1740530073121,0.0004241,88592.0,88591.0,0.00702793]
[1740530073313,0.0004241,88592.0,88591.0,0.169317]
[1740530073523,0.0004241,88592.0,88591.0,0.17634493]
[1740530073729,0.0004241,88592.0,88591.0,0.17792509]
[1740530073936,0.0004241,88592.0,88591.0,0.01760809]
[1740530074094,0.0004241,88592.0,88591.0,0.01602793]
[1740530074706,0.225687,88618.0,88591.0,0.01602793]
[1740530074904,0.22569,88617.0,88591.0,0.01602793]
[1740530075107,0.225711,88609.0,88591.0,0.18534493]
[1740530075311,0.169286,88608.0,88591.0,0.18534493]
[1740530075516,0.02930973,88610.0,88591.0,0.00702793]
[1740530075733,0.22571,88609.0,88591.0,0.01119282]
[1740530075946,0.169286,88608.0,88591.0,0.18150982]
[1740530076115,0.169286,88608.0,88591.0,0.17650982]
[1740530076323,0.169286,88608.0,88591.0,0.17550982]
[1740530076793,0.19775124,88610.0,88591.0,0.00619282]
[1740530077009,0.02846924,88610.0,88591.0,0.00777295]
[1740530077216,0.169283,88609.0,88591.0,0.17089713]
[1740530077467,0.225709,88610.0,88592.0,0.00619282]
[1740530077694,0.169283,88609.0,88592.0,0.00619282]
[1740530077909,0.02932136,88610.0,88592.0,0.17550682]
[1740530078120,0.00866455,88619.0,88592.0,0.00619282]
[1740530078321,0.00866455,88619.0,88591.0,0.00158013]
[1740530078519,0.00866455,88619.0,88587.0,0.00158013]
[1740530078787,0.10498666,88618.0,88586.0,0.3251]
[1740530078984,0.169313,88594.0,88588.0,0.00617802]
[1740530079232,0.169313,88594.0,88577.0,0.251743]
[1740530079370,0.169315,88592.0,88577.0,0.0824]
[1740530079807,0.01454085,88616.0,88575.0,0.0483]
[1740530080012,0.169328,88585.0,88575.0,0.0483]
[1740530080444,0.169328,88585.0,88584.0,0.00204202]
[1740530080817,0.19837599,88585.0,88584.0,0.00204202]
[1740530081162,0.19837599,88585.0,88584.0,0.00304202]
[1740530081366,0.19837599,88585.0,88584.0,0.00204202]
[1740530081949,0.19837599,88585.0,88584.0,0.00104202]
[1740530082719,0.02904799,88585.0,88584.0,4.202e-05]
[1740530082915,0.16932,88590.0,88584.0,0.00288982]
[1740530083137,0.225733,88600.0,88584.0,0.00288982]
[1740530083345,0.169322,88589.0,88584.0,0.00288982]
[1740530083547,0.0004239,88612.0,88584.0,0.00388982]
[1740530083548,0.0290797,88600.0,88584.0,0.00388982]
[1740530083744,0.0004239,88612.0,88584.0,0.00088982]
[1740530083950,0.169315,88592.0,88584.0,0.00088982]
[1740530084123,0.0004239,88612.0,88584.0,0.00088982]
[1740530084124,0.169317,88591.0,88584.0,0.00188982]
[1740530084337,0.0004239,88612.0,88584.0,0.00088982]
[1740530084548,0.169324,88588.0,88584.0,0.00088982]
[1740530084745,0.169325,88587.0,88584.0,0.00088982]
[1740530084969,0.225741,88597.0,88584.0,0.00188982]
[1740530085163,0.169326,88587.0,88584.0,0.00188982]
[1740530085547,0.169326,88587.0,88584.0,0.00288982]
[1740530085754,0.169327,88586.0,88584.0,0.00288982]
[1740530085955,0.225763,88589.0,88584.0,0.00288982]
[1740530086157,0.169325,88587.0,88584.0,0.00188982]
[1740530086358,0.169325,88587.0,88584.0,0.00288982]
[1740530086559,0.169328,88585.0,88584.0,0.00188982]
[1740530086760,0.169328,88585.0,88584.0,0.00388982]
[1740530087575,0.169328,88585.0,88584.0,0.00188982]
[1740530087843,0.169328,88585.0,88584.0,0.00388982]
[1740530088243,0.169328,88585.0,88584.0,0.00488982]
[1740530088661,0.169328,88585.0,88584.0,0.00388982]
[1740530088878,0.225769,88587.0,88584.0,0.00388982]
[1740530089102,0.169328,88585.0,88584.0,0.00388982]
[1740530089288,0.225769,88587.0,88584.0,0.00388982]
[1740530089483,0.169328,88585.0,88584.0,0.00388982]
[1740530089964,0.169328,88585.0,88584.0,0.00488982]
[1740530090513,0.169328,88585.0,88584.0,0.00088982]
[1740530090730,0.169328,88585.0,88584.0,0.00388982]
[1740530090933,0.169328,88585.0,88584.0,0.00088982]
[1740530091328,0.169328,88585.0,88584.0,0.00288982]
[1740530091466,0.169328,88585.0,88584.0,0.00088982]
[1740530092467,0.169328,88585.0,88584.0,0.00188982]
[1740530092915,0.169328,88585.0,88584.0,0.00388982]
[1740530093120,0.169328,88585.0,88584.0,0.00288982]
[1740530093289,0.169328,88585.0,88584.0,0.00088982]
[1740530093492,0.23421885,88594.0,88584.0,0.00288982]
[1740530093717,0.23421885,88594.0,88584.0,0.00088982]
[1740530094144,0.169328,88585.0,88584.0,0.00288982]
[1740530094441,0.169328,88585.0,88584.0,0.00088982]
[1740530095038,0.169328,88585.0,88584.0,0.00188982]
[1740530095465,0.169328,88585.0,88584.0,0.00088982]
[1740530096876,0.169328,88585.0,88584.0,0.00288982]
[1740530097284,0.169328,88585.0,88584.0,0.00088982]
[1740530097484,0.169328,88585.0,88584.0,0.00188982]
[1740530098100,0.2261818,88591.0,88559.0,0.0783]
[1740530098101,0.169376,88560.0,88559.0,0.0783]
[1740530098469,0.169376,88560.0,88559.0,0.00626708]
[1740530098926,0.169382,88557.0,88556.0,0.04719668]
[1740530099288,0.169382,88557.0,88556.0,9.668e-05]
[1740530099492,0.169382,88557.0,88556.0,0.00793635]
[1740530099873,0.169382,88557.0,88556.0,9.668e-05]
[1740530101031,0.170382,88557.0,88556.0,9.668e-05]
[1740530101385,0.170382,88557.0,88556.0,0.00509668]
[1740530102817,0.170382,88557.0,88556.0,0.00909668]
[1740530103580,0.001,88557.0,88556.0,0.00909668]
[1740530103812,0.001,88557.0,88556.0,0.08559668]
[1740530104586,0.001,88557.0,88556.0,0.30098068]
[1740530104795,0.49837298,88593.0,88556.0,0.13159668]
[1740530105013,0.169354,88572.0,88556.0,0.13317738]
[1740530105358,0.10983872,88602.0,88557.0,0.0819]
[1740530105359,0.225735,88600.0,88557.0,0.0819]
[1740530105560,0.02975788,88572.0,88559.0,0.225838]
[1740530105756,0.169337,88581.0,88563.0,0.16937]
[1740530105936,0.02871921,88572.0,88560.0,0.0817]
[1740530106137,0.169345,88577.0,88560.0,0.0817]
[1740530106317,0.169345,88577.0,88560.0,0.251076]
[1740530106526,0.169345,88577.0,88560.0,0.0817]
[1740530106718,0.001,88572.0,88560.0,0.0817]
[1740530107055,0.001,88572.0,88563.0,0.003]
[1740530107273,0.03029528,88572.0,88560.0,0.0817]
[1740530107488,0.03029528,88572.0,88560.0,0.0857]
[1740530107852,0.03029528,88572.0,88560.0,0.0817]
[1740530108035,0.02929528,88572.0,88560.0,0.0817]
[1740530108268,0.169344,88577.0,88560.0,0.0837]
[1740530108438,0.169344,88577.0,88560.0,0.253076]
[1740530108870,0.169344,88577.0,88560.0,0.251076]
[1740530109043,0.0004239,88584.0,88561.0,0.00158064]
[1740530109244,0.169335,88582.0,88565.0,0.169366]
[1740530109590,0.02841371,88582.0,88560.0,0.0857]
[1740530109818,0.02841371,88582.0,88569.0,0.0498]
[1740530110029,0.0004239,88584.0,88577.0,0.0781]
[1740530110221,0.0004239,88584.0,88577.0,0.247443]
[1740530110399,0.0004239,88584.0,88577.0,0.0781]
[1740530110601,0.0004239,88584.0,88577.0,0.247443]
[1740530110797,0.02901218,88584.0,88577.0,0.0781]
[1740530111000,0.0004239,88584.0,88577.0,0.0781]
[1740530111412,0.169341,88579.0,88577.0,0.0781]
[1740530111602,0.169338,88580.0,88577.0,0.0781]
[1740530111808,0.0004239,88584.0,88577.0,0.0781]
[1740530112005,0.0014239,88584.0,88578.0,0.00656304]
[1740530112244,0.03756294,88584.0,88577.0,0.0781]
[1740530112415,0.0014239,88584.0,88579.0,0.00656126]
[1740530112741,0.169335,88582.0,88577.0,0.0781]
[1740530112896,0.169335,88582.0,88580.0,0.00655948]
[1740530113095,0.169335,88582.0,88577.0,0.0791]
[1740530113265,0.169335,88582.0,88577.0,0.0781]
[1740530113618,0.169335,88582.0,88579.0,0.001]
[1740530113803,0.169338,88580.0,88579.0,0.001]
[1740530114583,0.169338,88580.0,88579.0,0.00891]
[1740530115621,0.169338,88580.0,88579.0,0.00791]
[1740530116199,0.169338,88580.0,88579.0,0.00991]
[1740530116695,0.225781,88582.0,88579.0,0.00991]
[1740530116921,0.169338,88580.0,88579.0,0.00991]
[1740530117095,0.169338,88580.0,88579.0,0.00891]
[1740530117297,0.169338,88580.0,88579.0,0.01091]
[1740530118343,0.169338,88580.0,88579.0,0.00991]
[1740530118634,0.169338,88580.0,88579.0,0.00891]
[1740530119047,0.169338,88580.0,88579.0,0.00991]
[1740530119261,0.169353,88572.0,88571.0,0.3251]
[1740530119692,0.169357,88570.0,88569.0,0.0498]
[1740530120371,0.225785,88580.0,88569.0,0.0498]
[1740530120611,0.03722484,88584.0,88569.0,0.0498]
[1740530120964,0.16934,88579.0,88569.0,0.0498]
[1740530121163,0.03722484,88584.0,88569.0,0.0498]
[1740530121359,0.169344,88577.0,88569.0,0.0498]
[1740530121566,0.169346,88576.0,88571.0,0.001]
[1740530121764,0.03722484,88584.0,88571.0,0.003]
[1740530122027,0.169344,88577.0,88572.0,0.0776]
[1740530122201,0.30320653,88597.0,88572.0,0.0776]
[1740530122401,0.169346,88576.0,88572.0,0.0776]
[1740530123226,0.169351,88573.0,88572.0,0.0806]
[1740530123785,0.01770658,88676.0,88572.0,0.0806]
[1740530123989,0.16935,88574.0,88572.0,0.0806]
[1740530124313,0.169351,88573.0,88572.0,0.0846]
[1740530124689,0.225775,88584.0,88572.0,0.0816]
[1740530124897,0.169346,88576.0,88572.0,0.0846]
[1740530125333,0.225775,88584.0,88572.0,0.0846]
[1740530125559,0.169347,88576.0,88572.0,0.0776]
[1740530125762,0.225775,88584.0,88572.0,0.0866]
[1740530125933,0.225746,88595.0,88572.0,0.0866]
[1740530126143,0.169338,88580.0,88572.0,0.0816]
[1740530126293,0.169327,88586.0,88572.0,0.0816]
[1740530126497,0.169328,88586.0,88572.0,0.0816]
[1740530126698,0.03632152,88597.0,88572.0,0.0776]
[1740530127057,0.169337,88581.0,88572.0,0.0786]
[1740530127628,0.225741,88597.0,88572.0,0.0776]
[1740530127827,0.03655787,88597.0,88572.0,0.0776]
[1740530128202,0.169351,88573.0,88572.0,0.0786]
[1740530128572,0.169351,88573.0,88572.0,0.0776]
[1740530129172,0.169351,88574.0,88572.0,0.0776]
[1740530129405,0.16934,88579.0,88572.0,0.0776]
[1740530129600,0.04195774,88597.0,88573.0,0.00581811]
[1740530129874,0.03695774,88597.0,88573.0,0.00581811]
[1740530130274,0.225741,88597.0,88573.0,0.00581811]
[1740530130439,0.169344,88578.0,88573.0,0.00581811]
[1740530130634,0.225787,88580.0,88572.0,0.0834476]
[1740530130849,0.169337,88581.0,88574.0,0.00581633]
[1740530131043,0.225765,88588.0,88572.0,0.0784476]
[1740530131251,0.16934,88579.0,88575.0,0.00581455]
[1740530131446,0.0004238,88593.0,88572.0,0.0824476]
[1740530131647,0.225782,88581.0,88572.0,0.0784476]
[1740530132042,0.0004238,88593.0,88574.0,0.002]
[1740530132239,0.169332,88584.0,88574.0,0.002]
[1740530132440,0.169331,88584.0,88572.0,0.0784476]
[1740530132684,0.2261768,88593.0,88572.0,0.0784476]
[1740530132892,0.0004238,88593.0,88572.0,0.0794476]
[1740530133241,0.169339,88580.0,88572.0,0.0794476]
[1740530133496,0.225756,88591.0,88572.0,0.0794476]
[1740530133836,0.0004238,88593.0,88572.0,0.0794476]
[1740530134055,0.169323,88588.0,88575.0,0.079]
[1740530134784,0.0004238,88593.0,88575.0,0.079]
[1740530135115,0.169324,88588.0,88575.0,0.079]
[1740530135330,0.225754,88592.0,88575.0,0.08]
[1740530135606,0.22576,88590.0,88575.0,0.08]
[1740530135790,0.0004238,88593.0,88575.0,0.079]
[1740530135985,0.0004238,88593.0,88575.0,0.08058054]
[1740530136211,0.1707378,88593.0,88576.0,0.0805]
[1740530136348,0.169328,88586.0,88576.0,0.0805]
[1740530136553,0.225754,88592.0,88576.0,0.0805]
[1740530137015,0.0014238,88593.0,88576.0,0.0805]
[1740530137185,0.0014238,88593.0,88576.0,0.08208042]
[1740530137395,0.169318,88591.0,88576.0,0.08208042]
[1740530137598,0.0004238,88593.0,88576.0,0.08208042]
[1740530137819,0.169317,88591.0,88577.0,0.0805]
[1740530138132,0.169316,88592.0,88577.0,0.0805]
[1740530138277,0.169316,88592.0,88577.0,0.08208038]
[1740530138681,0.0004238,88593.0,88577.0,0.0805]
[1740530138989,0.0004238,88593.0,88577.0,0.0757]
[1740530139193,0.0014238,88593.0,88580.0,0.225784]
[1740530139399,0.0014238,88593.0,88583.0,0.271276]
[1740530139599,0.0014238,88593.0,88581.0,0.00158016]
[1740530139600,0.0014238,88593.0,88586.0,0.214826]
[1740530139831,0.0014238,88593.0,88592.0,0.0757]
[1740530140497,0.0004238,88593.0,88592.0,0.0757]
[1740530140699,0.0014238,88593.0,88592.0,0.07579668]
[1740530141092,0.0004238,88593.0,88592.0,0.07579668]
[1740530141291,0.0004238,88593.0,88592.0,0.29219185]
[1740530141515,0.0004238,88593.0,88592.0,0.12529668]
[1740530141727,0.0004238,88593.0,88592.0,0.12687676]
[1740530142284,0.0004238,88593.0,88592.0,0.12287676]
[1740530142780,0.0004238,88593.0,88592.0,0.12129668]
[1740530143140,0.0004238,88593.0,88592.0,0.12529668]
[1740530143539,0.0014238,88593.0,88592.0,0.12829668]
[1740530143772,0.0014238,88593.0,88592.0,0.1352945]
[1740530143942,0.0024238,88593.0,88592.0,0.1422945]
[1740530150025,0.19704812,88601.0,88592.0,0.1422945]
[1740530150230,0.169301,88600.0,88592.0,0.1422945]
[1740530150435,0.169301,88600.0,88592.0,0.13529668]
[1740530150633,0.11454085,88644.0,88592.0,0.13529668]
[1740530150634,0.169313,88593.0,88592.0,0.01409668]
[1740530150985,0.169313,88593.0,88592.0,0.00709668]
[1740530151199,0.169312,88594.0,88592.0,9.668e-05]
[1740530151400,0.169312,88594.0,88592.0,0.00909668]
[1740530151599,0.20551765,88598.0,88592.0,0.00909668]
[1740530151817,0.225703,88613.0,88592.0,0.00909668]
[1740530151818,0.225701,88613.0,88594.0,0.0776]
[1740530152052,0.169286,88608.0,88595.0,0.0457]
[1740530152292,0.0004242,88622.0,88595.0,0.0457]
[1740530152640,0.169288,88607.0,88595.0,0.0457]
[1740530152846,0.169292,88604.0,88595.0,0.0457]
[1740530153241,0.26314392,88612.0,88595.0,0.0457]
[1740530153592,0.169298,88602.0,88595.0,0.0457]
[1740530153746,0.169298,88602.0,88595.0,0.0477]
[1740530154088,0.169298,88602.0,88595.0,0.0457]
[1740530154286,0.225725,88604.0,88595.0,0.0457]
[1740530154487,0.169295,88603.0,88595.0,0.0467]
[1740530154724,0.169292,88605.0,88595.0,0.0457]
[1740530154840,0.169285,88608.0,88595.0,0.0457]
[1740530155046,0.169286,88607.0,88595.0,0.0497]
[1740530155247,0.169289,88606.0,88595.0,0.0527]
[1740530155486,0.225712,88609.0,88595.0,0.0527]
[1740530155670,0.169295,88603.0,88595.0,0.0527]
[1740530155861,0.225708,88610.0,88595.0,0.0527]
[1740530156264,0.169283,88609.0,88595.0,0.0527]
[1740530156599,0.169283,88609.0,88596.0,0.0752]
[1740530157005,0.169286,88607.0,88596.0,0.0752]
[1740530157438,0.169285,88608.0,88596.0,0.0752]
[1740530157638,0.03744092,88612.0,88596.0,0.0752]
[1740530157815,0.169281,88610.0,88596.0,0.0752]
[1740530158113,0.00858034,88619.0,88596.0,0.0772]
[1740530158357,0.00858034,88619.0,88596.0,0.0752]
[1740530158554,0.169275,88613.0,88597.0,0.0752]
[1740530158688,0.169277,88612.0,88598.0,0.0752]
[1740530159023,0.225698,88614.0,88598.0,0.0821774]
[1740530159240,0.169273,88614.0,88598.0,0.0821774]
[1740530159855,0.169275,88613.0,88598.0,0.0821774]
[1740530160079,0.20602489,88613.0,88598.0,0.0821774]
[1740530160483,0.03674989,88613.0,88598.0,0.0821774]
[1740530160992,0.169294,88603.0,88598.0,0.0821774]
[1740530161730,0.169302,88599.0,88598.0,0.0069774]
[1740530162059,0.169313,88593.0,88592.0,0.00094428]
[1740530164249,0.169313,88593.0,88592.0,0.00294428]
[1740530164569,0.169313,88593.0,88592.0,0.00194428]
[1740530164770,0.169313,88593.0,88592.0,0.00394428]
[1740530165175,0.169313,88593.0,88592.0,0.00094428]
[1740530165379,0.169313,88593.0,88592.0,0.00194428]
[1740530165585,0.225695,88616.0,88592.0,0.00194428]
[1740530165829,0.169306,88597.0,88592.0,0.00194428]
[1740530166057,0.225717,88607.0,88592.0,0.00194428]
[1740530166257,0.26688501,88615.0,88592.0,0.00194428]
[1740530166433,0.225697,88614.0,88592.0,0.00394428]
[1740530166639,0.169309,88596.0,88592.0,0.00294428]
[1740530166823,0.169309,88595.0,88592.0,0.00094428]
[1740530167037,0.169309,88595.0,88592.0,0.00294428]
[1740530167355,0.169309,88595.0,88592.0,0.00494428]
[1740530167555,0.169309,88595.0,88592.0,0.00094428]
[1740530167856,0.0004237,88612.0,88592.0,0.00394428]
[1740530168065,0.0004237,88612.0,88593.0,0.0779]
[1740530168243,0.0004237,88612.0,88595.0,0.1237]
[1740530168440,0.0004237,88612.0,88596.0,0.0779]
[1740530168652,0.169296,88602.0,88596.0,0.08488191]
[1740530168850,0.169291,88605.0,88596.0,0.08488191]
[1740530169303,0.0004237,88612.0,88596.0,0.08488191]
[1740530169443,0.169294,88603.0,88596.0,0.08488191]
[1740530169650,0.16929,88606.0,88596.0,0.08488191]
[1740530169852,0.0004237,88612.0,88596.0,0.08488191]
[1740530170098,0.169293,88604.0,88596.0,0.08488191]
[1740530170497,0.169293,88604.0,88596.0,0.0779]
[1740530170698,0.225708,88610.0,88596.0,0.0779]
[1740530170898,0.1693,88601.0,88597.0,0.0069811]
[1740530171130,0.169304,88598.0,88597.0,0.0069811]
[1740530171530,0.169304,88598.0,88596.0,0.003]
[1740530171676,0.169304,88598.0,88596.0,0.01146443]
[1740530171862,0.169304,88598.0,88596.0,0.00846443]
[1740530172385,0.0004237,88612.0,88596.0,0.00846443]
[1740530172591,0.169298,88601.0,88596.0,0.00846443]
[1740530172759,0.169298,88601.0,88597.0,0.0069811]
[1740530172956,0.169297,88602.0,88597.0,0.0069811]
[1740530173208,0.169297,88602.0,88596.0,0.00846443]
[1740530173405,0.169297,88602.0,88597.0,0.002]
[1740530173610,0.169295,88603.0,88597.0,0.002]
[1740530173975,0.225721,88605.0,88596.0,0.01246443]
[1740530174148,0.225705,88611.0,88597.0,0.01241087]
[1740530174387,0.169299,88601.0,88597.0,0.01241087]
[1740530174601,0.169304,88598.0,88597.0,0.00941087]
[1740530174828,0.225716,88607.0,88592.0,0.00094428]
[1740530174829,0.169313,88593.0,88592.0,0.00094428]
[1740530175178,0.169313,88593.0,88592.0,0.00792907]
[1740530175382,0.169313,88593.0,88592.0,0.00094428]
[1740530177320,0.169313,88593.0,88592.0,0.00394428]
[1740530177704,0.169313,88593.0,88592.0,0.00094428]
[1740530177926,0.169313,88593.0,88592.0,0.00394428]
[1740530178127,0.169313,88593.0,88592.0,0.00694428]
[1740530178538,0.169313,88593.0,88592.0,0.01262871]
[1740530179290,0.169313,88593.0,88592.0,0.00962871]
[1740530179697,0.169313,88593.0,88592.0,0.01162871]
[1740530180037,0.169313,88593.0,88592.0,0.00094428]
[1740530180236,0.169313,88593.0,88592.0,0.00294428]
[1740530180438,0.169313,88593.0,88592.0,0.00394428]
[1740530180641,0.169313,88593.0,88592.0,0.001]
[1740530180962,0.169313,88593.0,88574.0,0.0827]
[1740530180963,0.169348,88575.0,88574.0,0.0827]
[1740530181122,0.225754,88592.0,88574.0,0.08279874]
[1740530181328,0.169336,88582.0,88574.0,0.08980063]
[1740530181526,0.169348,88575.0,88574.0,0.08980063]
[1740530181940,0.169348,88575.0,88574.0,0.00710063]
[1740530182139,0.169348,88575.0,88574.0,9.874e-05]
[1740530183183,0.169348,88575.0,88574.0,0.00209874]
[1740530183385,0.169348,88575.0,88574.0,9.874e-05]
[1740530183711,0.174348,88575.0,88574.0,9.874e-05]
[1740530184083,0.170348,88575.0,88574.0,9.874e-05]
[1740530184567,0.171348,88575.0,88574.0,9.874e-05]
[1740530184740,0.169351,88573.0,88557.0,0.125]
[1740530185065,0.169351,88573.0,88572.0,9.918e-05]
[1740530185196,0.45077686,88573.0,88572.0,1.8e-07]
[1740530185406,0.169382,88557.0,88556.0,1.8e-07]
[1740530185631,0.169382,88557.0,88556.0,9.936e-05]
[1740530186927,0.181382,88557.0,88556.0,0.00109936]
[1740530187344,0.21055001,88557.0,88556.0,9.936e-05]
[1740530187767,0.21655001,88557.0,88556.0,0.00109936]
[1740530188204,0.20455001,88557.0,88556.0,0.00109936]
[1740530188965,0.19855001,88557.0,88556.0,9.936e-05]
[1740530189371,0.20455001,88557.0,88556.0,0.00109936]
[1740530189583,0.20955001,88557.0,88556.0,0.00109936]
[1740530189785,0.20355001,88557.0,88556.0,9.936e-05]
[1740530190008,0.20355001,88557.0,88556.0,0.00109936]
[1740530190184,0.20455001,88557.0,88556.0,0.00109936]
[1740530190625,0.20955001,88557.0,88556.0,0.00109936]
[1740530194541,0.18868675,88557.0,88556.0,0.00109936]
[1740530194945,0.30199433,88557.0,88556.0,0.00109936]
[1740530196219,0.26688501,88558.0,88556.0,0.00109936]
[1740530196633,0.17789046,88557.0,88556.0,0.00109936]
[1740530196993,0.17789046,88557.0,88556.0,9.936e-05]
[1740530198901,0.17789046,88557.0,88556.0,0.00109936]
[1740530199381,0.17789046,88557.0,88556.0,9.936e-05]
[1740530202032,0.18289046,88557.0,88556.0,9.936e-05]
[1740530202498,0.17831446,88557.0,88556.0,9.936e-05]
[1740530202733,0.18231446,88557.0,88556.0,9.936e-05]
[1740530203178,0.18631446,88557.0,88556.0,9.936e-05]
[1740530203593,0.17831446,88557.0,88556.0,9.936e-05]
[1740530203810,0.18231446,88557.0,88556.0,9.936e-05]
[1740530204397,0.18631446,88557.0,88556.0,9.936e-05]
[1740530204612,0.17831446,88557.0,88556.0,9.936e-05]
[1740530204771,0.18231446,88557.0,88556.0,9.936e-05]
[1740530205587,0.17831446,88557.0,88556.0,9.936e-05]
[1740530205760,0.18231446,88557.0,88556.0,9.936e-05]
[1740530206373,0.17831446,88557.0,88556.0,9.936e-05]
[1740530206586,0.18231446,88557.0,88556.0,9.936e-05]
[1740530206754,0.18531446,88557.0,88556.0,9.936e-05]
[1740530207157,0.01593246,88557.0,88542.0,0.0761]
[1740530207340,0.16942,88537.0,88536.0,0.1263484]
[1740530207521,0.16942,88537.0,88536.0,0.12647408]
[1740530209092,0.16942,88537.0,88536.0,0.00097408]
[1740530209445,0.169447,88523.0,88518.0,0.0829]
[1740530209619,0.169447,88523.0,88522.0,0.00097412]
[1740530209979,0.17788267,88523.0,88522.0,0.00097412]
[1740530210785,0.18088267,88523.0,88522.0,0.00097412]
[1740530211384,0.16946,88516.0,88515.0,0.0456]
[1740530211607,0.16946,88516.0,88515.0,0.04572576]
[1740530213395,0.16946,88516.0,88515.0,0.058378]
[1740530213594,0.16946,88516.0,88515.0,0.04572576]
[1740530214728,0.16946,88516.0,88515.0,0.05537219]
[1740530215445,0.16946,88516.0,88515.0,0.04572576]
[1740530216394,0.18717832,88516.0,88515.0,0.04572576]
[1740530216671,0.01771832,88516.0,88515.0,0.12582576]
[1740530216876,0.18717832,88516.0,88515.0,0.138578]
[1740530217122,0.18717832,88516.0,88515.0,0.14824262]
[1740530217318,0.18717832,88516.0,88515.0,0.13549038]
[1740530217475,0.01771832,88516.0,88515.0,0.13549038]
[1740530217900,0.18717832,88516.0,88515.0,0.13549038]
[1740530218784,0.01771832,88516.0,88515.0,0.13549038]
[1740530219245,0.18717832,88516.0,88515.0,0.13549038]
[1740530219585,0.18717832,88516.0,88515.0,0.13954446]
[1740530220490,0.01771832,88516.0,88515.0,0.13954446]
[1740530220692,0.01771832,88516.0,88515.0,0.15035369]
[1740530221319,0.18717832,88516.0,88515.0,0.15035369]
[1740530223359,0.18717832,88516.0,88515.0,0.13954446]
[1740530223896,0.18717832,88516.0,88515.0,0.14054446]
[1740530224103,0.18717832,88516.0,88515.0,0.15135369]
[1740530224305,0.18717832,88516.0,88515.0,0.14935369]
[1740530224549,0.18717832,88516.0,88515.0,0.15035369]
[1740530225377,0.18717832,88516.0,88515.0,0.15135369]
[1740530226842,0.18717832,88516.0,88515.0,0.15220229]
[1740530227050,0.18717832,88516.0,88515.0,0.13848359]
[1740530227330,0.18717832,88516.0,88515.0,0.12767436]
[1740530228012,0.18717832,88516.0,88515.0,0.12567436]
[1740530229243,0.18717832,88516.0,88515.0,0.13647942]
[1740530229468,0.18717832,88516.0,88515.0,0.12567436]
[1740530229709,0.18717832,88516.0,88515.0,0.14921652]
[1740530229710,0.01771832,88516.0,88515.0,0.14921652]
[1740530229909,0.18717832,88516.0,88515.0,0.13841146]
[1740530230126,0.18717832,88516.0,88515.0,0.14921652]
[1740530230435,0.225941,88519.0,88515.0,0.14921652]
[1740530230705,0.395403,88517.0,88516.0,0.01509131]
[1740530230912,0.395403,88517.0,88516.0,0.09019131]
[1740530231115,0.395403,88517.0,88516.0,0.10099434]
[1740530231876,0.169458,88517.0,88516.0,0.10099434]
[1740530232391,0.169458,88517.0,88516.0,0.10399434]
[1740530232598,0.169454,88520.0,88517.0,0.0758]
[1740530232774,0.169455,88519.0,88518.0,0.01521171]
[1740530232983,0.169455,88519.0,88518.0,0.02601189]
[1740530233972,0.169455,88519.0,88518.0,0.01080018]
[1740530234198,0.169457,88518.0,88517.0,0.0758]
[1740530235228,0.18717484,88518.0,88517.0,0.0758]